Cogmind - Beta 16.1 @@@ ROGUE MODE // 2026.02.18 @ 16:31:01 Player: Ceorik Result: Destroyed by ZM-O91(R) with Subdweller Machine Gun Performance ------------- Evolutions (0) 0 Regions Visited (3) 600 Robots Destroyed (10) 50 Value Destroyed (244) 244 Prototype IDs (0) 0 Alien Tech Used (0) 0 Bonus (0) 0 TOTAL SCORE: 894 Bonus ------- None Cogmind --------- Core Integrity 0/250 Matter 91/300 Energy 68/100 System Corruption 0% Temperature Cool (0) Movement Core (200) Ox3 Location -10/Subcaves Parts ------- > --- POWER (1) -------- (None) > --- PROPULSION (2) --- (None) > --- UTILITY (2) ------ Heat Sink Small Storage Unit > --- WEAPON (2) ------- Beam Cannon Beam Cannon > --- INVENTORY (8) ---- Ion Engine Scrap Suit Sensor Array Improved Terrain Scanner Scrap Shield Assault Rifle Peak State ------------ > --- POWER ------------ Ion Engine > --- PROPULSION ------- Aluminum Leg Aluminum Leg > --- UTILITY ---------- Small Storage Unit Improved Terrain Scanner > --- WEAPON ----------- EM Pulse Gun Assault Rifle > --- INVENTORY -------- Ion Engine [Rating: 9] Favorites ----------- Power Ion Engine Engine Ion Engine Propulsion Aluminum Leg Leg Aluminum Leg Utility Small Storage Unit Device Heat Sink Storage Small Storage Unit Weapon Beam Cannon Energy Gun EM Pulse Gun Energy Cannon Beam Cannon Ballistic Gun Assault Rifle Build | -11 -10 -10 -10 ------- Run | Yrd Mat Min Sub Slots Evolved . | . . . . Power . | . . . . Propulsion . | . . . . Utility . | . . . . Weapon . | . . . . Parts Attached 10 | 7 . 2 1 Power 1 | 1 . . . Engine 1 | 1 . . . Core . | . . . . Reactor . | . . . . Propulsion 2 | 2 . . . Treads . | . . . . Leg 2 | 2 . . . Wheel . | . . . . Hover . | . . . . Flight . | . . . . Utility 3 | 2 . 1 . Device 2 | 1 . 1 . Storage 1 | 1 . . . Processor . | . . . . Hackware . | . . . . Protection . | . . . . Artifact . | . . . . Weapon 4 | 2 . 1 1 Energy Gun 1 | 1 . . . Energy Cannon 2 | . . 1 1 Ballistic Gun 1 | 1 . . . Ballistic Cannon . | . . . . Launcher . | . . . . Special Weapon . | . . . . Impact Weapon . | . . . . Slashing Weapon . | . . . . Piercing Weapon . | . . . . Special Melee Weapon . | . . . . Unidentified Prototypes . | . . . . Parts Lost 4 | . . 1 3 Power 1 | . . . 1 Propulsion 2 | . . . 2 Utility . | . . . . Weapon 1 | . . 1 . Highest Loss Streak 3 | . . 1 3 To Critical Strikes . | . . . . Average Backups 4 | 1 2 5 6 Power . | . 1 1 1 Propulsion . | . . . . Utility 2 | . . 2 3 Weapon 1 | . . 2 1 Tool/Special . | . . . . Unused Backups 4 | . . . 4 Power 1 | . . . 1 Propulsion . | . . . . Utility 3 | . . . 3 Weapon . | . . . . Tool/Special . | . . . . Average Slot Usage (%) 96 | . 96 98 92 Engine 14 | . 14 14 14 Leg 26 | . 28 28 23 Device 13 | . 10 14 14 Storage 14 | . 14 14 14 Energy Gun 9 | . 14 12 . Energy Cannon 13 | . . 13 25 Ballistic Gun 3 | . 14 . . Peak Build Rating 9 | 9 9 8 8 Average Rating 7 | 4 8 7 7 On Entrance 6 | . 9 9 7 Avg Prop Armor Cover (%) . | . . . . Naked Turns . | . . . . Heaviest Build 17 | 15 15 16 17 Greatest Support 20 | 20 20 20 20 Greatest Overweight (x) 1 | . . . 1 Average Overweight (x) . | . . . . Largest Inventory Capacity 8 | 8 8 8 8 Average Capacity 7 | 7 8 8 8 Most Carried 8 | 3 5 7 8 Average Carried 5 | . 2 6 7 Final Capacity 8 | 8 8 8 8 Final Carried 8 | 1 5 7 8 Class Distribution -------------------- 100% | Mutant Dominant Class ---------------- Mutant | -10/Materials Mutant | -10/Mines Mutant | -10/Subcaves Resources | -11 -10 -10 -10 ----------- Run | Yrd Mat Min Sub Matter Collected 102 | 89 13 . . Remotely . | . . . . Salvage Created 258 | 21 50 . 187 Parts 23 | 4 5 . 14 Haulers Intercepted . | . . . . Recyclers Shooed . | . . . . Parts Field Recycled . | . . . . Retrieved Matter . | . . . . Parts Self-Destructed . | . . . . Prevented . | . . . . Parts Restored . | . . . . Kills | -11 -10 -10 -10 ------- Run | Yrd Mat Min Sub Combat Hostiles Destroyed 8 | . 3 . 5 Guns 3 | . 3 . . Cannons 5 | . . . 5 Classes Destroyed 3 | 1 1 . 1 Tunneler 2 | 2 . . . Swarmer 3 | . 3 . . Subdweller 5 | . . . 5 Best Kill Streak 5 | 2 3 . 5 Combat Bots Only 5 | . 3 . 5 Max Kills in Single Turn 2 | 2 1 . 1 Gunslinging . | . . . . Exploded . | . . . . Melee . | . . . . Uniques/NPCs Destroyed . | . . . . Combat | -11 -10 -10 -10 -------- Run | Yrd Mat Min Sub Hostile Shots Fired 99 | . 15 48 36 Missed 43 | . 4 24 15 Hits 56 | . 11 24 21 Projectile 56 | . 11 24 21 Critical Strikes 1 | . . . 1 Damage Taken 886 | 29 118 218 521 Core 255 | 29 33 45 148 Absorbed by Shields . | . . . . Regen/Repaired (Parts) 17 | . 17 . . Core Remaining (%) 88 | 88 . . . Volleys Fired 20 | 1 6 . 13 Largest 2 | 2 2 . 2 Hottest 120 | 60 60 . 120 Shots Fired 40 | 2 12 . 26 Gun 14 | 2 12 . . Cannon 26 | . . . 26 Launcher . | . . . . Special . | . . . . Kinetic 7 | 1 6 . . Thermal 26 | . . . 26 Explosive . | . . . . Electromagnetic 7 | 1 6 . . Robot Hit Streak 25 | 2 4 . 25 Robot Miss Streak 2 | . 2 . . Penetration Max . | . . . . Secondary Targets . | . . . . Shots Hit Robots 32 | 2 6 . 24 Core Hits 14 | 2 3 . 9 Critical Kills . | . . . . Critical Parts Destroyed . | . . . . Critical Strikes . | . . . . Melee Attacks . | . . . . Impact . | . . . . Slashing . | . . . . Piercing . | . . . . Sneak Attacks . | . . . . Combat Hostiles . | . . . . Follow-up Attacks . | . . . . Damage Inflicted 625 | 109 95 . 421 Guns 87 | 13 74 . . Cannons 421 | . . . 421 Explosions 117 | 96 21 . . Melee . | . . . . Ramming . | . . . . Kinetic 30 | . 30 . . Thermal 538 | 96 21 . 421 Explosive . | . . . . Electromagnetic 57 | 13 44 . . Impact . | . . . . Slashing . | . . . . Piercing . | . . . . Highest Corruption . | . . . . Average Corruption . | . . . . Corruption Purged . | . . . . Corruption Blocked . | . . . . Overload Shots . | . . . . Overflow Damage 1 | . 1 . . Projectiles . | . . . . Explosions 1 | . 1 . . Melee . | . . . . Knockbacks . | . . . . Impact . | . . . . Kinetic . | . . . . Secondary . | . . . . Self-Inflicted Damage 65 | 29 36 . . Shots 2 | 1 1 . . Rammed . | . . . . Targets Rammed . | . . . . Kicked . | . . . . Crushed . | . . . . Highest Temperature 12 | 12 12 . . Average Temperature 12 | 12 12 . . Received Heat Transfer 33 | . . 15 18 Siege Activations . | . . . . Martial Activations . | . . . . Shielding Activations . | . . . . Robots Disrupted . | . . . . Combat Hostiles . | . . . . Robots Corrupted . | . . . . Combat Hostiles . | . . . . Parts Fried . | . . . . Impact Corruptions . | . . . . Robots Melted . | . . . . Combat Hostiles . | . . . . Parts Melted 2 | . . . 2 Heat Transferred 1038 | 100 50 . 888 Parts Sabotaged . | . . . . Parts Stolen . | . . . . Parts Stripped . | . . . . Power Chain Reactions 2 | 1 1 . . Alert | -11 -10 -10 -10 ------- Run | Yrd Mat Min Sub Maximum Alert Level . | . . . . Low Security (%) 100 | 100 100 100 . Level 1 . | . . . . Level 2 . | . . . . Level 3 . | . . . . Level 4 . | . . . . Level 5 . | . . . . High Security . | . . . . Max Security . | . . . . Peak Influence 63 | 10 63 16 . Initial 16 | . 6 16 . Average 6 | 1 15 2 . Influence Increases 101 | 10 76 15 . Destroy 0b10 Robot/C 60 | . 60 . . Destroy 0b10 Robot/NC 10 | 10 . . . Destroy Leader 10 | . 10 . . Successful Hack 3 | . 3 . . Destroy Structure 3 | . 3 . . Lose Combat Pursuer 15 | . . 15 . Influence Decreases 101 | . 43 53 5 Entered New Map 34 | . 4 27 3 Time Decay 67 | . 39 26 2 Squads Dispatched 1 | . 1 . . Investigation . | . . . . Extermination . | . . . . Reinforcement 1 | . 1 . . Assault . | . . . . Garrison . | . . . . Intercept . | . . . . Searches Triggered . | . . . . Construction Impeded . | . . . . Haulers Reinforced . | . . . . Active Scanning Responses . | . . . . Cargo Convoy Interrupts . | . . . . Stealth | -11 -10 -10 -10 --------- Run | Yrd Mat Min Sub Distress Signals 1 | . 1 . . Communications Jammed . | . . . . Distress Signals . | . . . . Times Spotted 23 | . 6 6 11 Peak Tracking Total 8 | . 4 5 8 Tactical Retreats 2 | . . 1 1 Traps | -11 -10 -10 -10 ------- Run | Yrd Mat Min Sub Traps Triggered 2 | . . . 2 Indirectly . | . . . . Trap Hack Attempts . | . . . . Triggered . | . . . . Disarmed . | . . . . Reprogrammed . | . . . . Reused . | . . . . Traps Extracted . | . . . . Installed . | . . . . Triggered . | . . . . Machines | -11 -10 -10 -10 ---------- Run | Yrd Mat Min Sub Machines Disabled . | . . . . Max in Single Turn . | . . . . Machines Repaired . | . . . . Machines Dismantled . | . . . . Machines Sabotaged . | . . . . Overloaded Fab Kills . | . . . . Hacking | -11 -10 -10 -10 --------- Run | Yrd Mat Min Sub Machines Accessed 1 | . 1 . . Terminals . | . . . . Fabricators . | . . . . Repair Stations 1 | . 1 . . Recycling Units . | . . . . Scanalyzers . | . . . . Garrison Access . | . . . . Total Hacks 2 | . 2 . . Successful 2 | . 2 . . Failed . | . . . . Catastrophic . | . . . . Database Lockouts . | . . . . Manual . | . . . . Terminals . | . . . . Fabricators . | . . . . Repair Stations 2 | . 2 . . Recycling Units . | . . . . Scanalyzers . | . . . . Garrison Access . | . . . . Terminal Hacks . | . . . . Fabricator Hacks . | . . . . Repair Station Hacks 2 | . 2 . . Scan Component 1 | . 1 . . Repair 1 | . 1 . . Recycling Unit Hacks . | . . . . Scanalyzer . | . . . . Garrison Access Hacks . | . . . . Unauthorized Hacks . | . . . . Terminals . | . . . . Fabricators . | . . . . Repair Stations . | . . . . Recycling Units . | . . . . Scanalyzers . | . . . . Garrison Access . | . . . . Data Cores Recovered . | . . . . Used . | . . . . Hacking Detections 1 | . 1 . . Full Trace Events . | . . . . Feedback Events . | . . . . Feedback Blocked . | . . . . Robot Schematics Acquired . | . . . . Robots Built . | . . . . Authchips . | . . . . Time . | . . . . Total Robot Build Rating . | . . . . Part Schematics Acquired . | . . . . Parts Built . | . . . . Authchips . | . . . . Time . | . . . . Total Part Build Rating . | . . . . Part Studies Acquired . | . . . . Parts Repaired 1 | . 1 . . Time 38 | . 38 . . Parts Recycled . | . . . . Recycled Matter . | . . . . Retrieved Matter . | . . . . Retrieved Components . | . . . . Parts Scanalyzed . | . . . . Part Schematics Acquired . | . . . . Parts Damaged . | . . . . Bothacking | -11 -10 -10 -10 ------------ Run | Yrd Mat Min Sub Used RIF Installer . | . . . . Robots Hacked . | . . . . Non-combat . | . . . . Combat . | . . . . Robot Hacks Applied . | . . . . Relay Couplers Released . | . . . . Fabnet Peak Effective % . | . . . . Robots Rewired . | . . . . Allies Hacked . | . . . . Hacks Repelled . | . . . . Allies | -11 -10 -10 -10 -------- Run | Yrd Mat Min Sub Total Allies . | . . . . Largest Group . | . . . . Highest-Rated Group . | . . . . Highest-Rated Ally . | . . . . Total Orders . | . . . . Ally Attacks . | . . . . Total Damage . | . . . . Kills . | . . . . Allies Corrupted . | . . . . Allies Melted . | . . . . Intel | -11 -10 -10 -10 ------- Run | Yrd Mat Min Sub Active Infowar (turns) 106 | 1 105 . . Terrain 106 | 1 105 . . Robot Analysis Total . | . . . . Derelict Logs Recovered 1 | . . . 1 Drone Launches . | . . . . Drone Recoveries . | . . . . Exploration | -11 -10 -10 -10 ------------- Run | Yrd Mat Min Sub Turns Passed 647 | 59 144 273 171 Spaces Moved 420 | 37 58 225 100 Core 4 | 4 . . . Treads . | . . . . Legs 416 | 33 58 225 100 Wheels . | . . . . Hover . | . . . . Flight . | . . . . Fastest Speed 50 | 50 120 120 120 Average Speed 119 | 112 120 120 120 Slowest Speed 190 | 120 120 120 190 Overloaded Moves . | . . . . Propulsion Burnouts . | . . . . Robots Hopped . | . . . . Potential Cave-ins . | . . . . Cave-ins Triggered . | . . . . Exploration Rate (%) 19 | 3 18 53 3 Regions Visited 3 Branch Regions 2 Pre-discovered Areas . | . . . . Known Exits Taken . | . . . . Unknown Exits Taken 3 | 1 1 1 . Scrap Searched . | . . . . Spaces Dug . | . . . . Terrain Destroyed 8 | 6 2 . . Melee . | . . . . Projectile . | . . . . AOE 8 | 6 2 . . Terrain Rammed . | . . . . Walls Destroyed . | . . . . Machines Disabled . | . . . . Actions | -11 -10 -10 -10 --------- Run | Yrd Mat Min Sub Total 522 | 52 120 227 123 Wait 59 | . 51 . 8 Move 417 | 36 57 224 100 Hop . | . . . . Pick Up 15 | 8 5 1 1 Fast Attach . | . . . . Attach 9 | 7 1 . 1 Detach . | . . . . Swap 2 | . . 2 . Drop . | . . . . Fire 20 | 1 6 . 13 Melee . | . . . . Ram . | . . . . Kick . | . . . . Crush . | . . . . Escape Stasis . | . . . . Rewire . | . . . . Trap . | . . . . Miscellaneous . | . . . . Route ------- -11/Scrapyard -10/Materials -10/Mines (discovered 3 exits: [*Mat x2] / [*Sub]) -10/Subcaves History --------- Turn | Location | Event 2 | -11/Scrapyard | Met Revision 17 29 | -11/Scrapyard | Discovered new exit (range 16) 60 | -11/Scrapyard | Entered Materials 104 | -10/Materials | Repaired Imp. Terrain Scanner 192 | -10/Materials | Discovered new exit (range 11) 204 | -10/Materials | Entered Mines 275 | -10/Mines | Found a Scrap Suit stashed away for nefarious purposes 277 | -10/Mines | Found Scrap Suit 294 | -10/Mines | Discovered new exit (range 13) 303 | -10/Mines | Build established: Mutant 375 | -10/Mines | Assembled infested the area 426 | -10/Mines | Discovered new exit (range 6) 450 | -10/Mines | Discovered new exit (range 3) 477 | -10/Mines | Entered Subcaves 478 | -10/Subcaves | Approached by a straggling Scientist 487 | -10/Subcaves | Learned Materials emergency access door positions 543 | -10/Subcaves | Ambushed by swarm of Subdwellers 546 | -10/Subcaves | Ambushed by Subdwellers from Twisted Machinery 546 | -10/Subcaves | Ambushed by Subdwellers from Twisted Machinery 546 | -10/Subcaves | Ambushed by Subdwellers from Twisted Machinery 620 | -10/Subcaves | Core integrity fell below 50% 639 | -10/Subcaves | Core integrity fell below 20% 648 | -10/Subcaves | Destroyed by ZM-O91(R) with Subdweller Machine Gun Last Messages --------------- Twisted Machinery. 00547_ VK-IJB(h) suffers critical hit (Destroy). 00595_ Triggered Piercing Trap. 00595_ Spikes shoot up from the floor. 00595_ Critical hit (Impale). 00601_ Triggered Piercing Trap. 00601_ Spikes shoot up from the floor. 00601_ Critical hit (Impale). 00611_ Aluminum Leg destroyed. 00626_ Disposable Heat Sink melted. 00626_ 73-SF0(R) destroyed. 00629_ U1-QVI(R) destroyed. 00632_ QJ-K96(R) destroyed. 00634_ ZM-O91(R) affixes Scrap Shield Fragment to Scrap Shield. 00641_ TE-QBP(R) destroyed. 00641_ LQ-GSI(R) destroyed. 00644_ Ion Engine destroyed. 00647_ Disposable Heat Sink melted. 00647_ LN-E1J(R) destroyed. Map ----- +----------------------------------------------------+ | ?????????????????????????????????????????????????? | | ?????????????????????????????????????????????????? | | ?????????????????????????????????????????????????? | | ?????????????????????????????????????????????????? | | ?????????????????????????????????????????????????? | | ?????????????????????????????????????????????????? | | ?????????????????????????????????????????????????? | | ?????????????????????????????????????????????????? | | ?????????????????????????????????????????????????? | | ?????????????????????????????????????????????????? | | ?????????????????????????????????????????????????? | | ?????????????????????????????????????????????????? | | ?????????????????????????????????????????????????? | | ?????????????????????????????????????????????????? | | ?????????????????????????????????????????????????? | | ?????????????????????????????????????????????????? | | ?????????????????????????????????????????????????? | | ?????????????????????????????????????????????????? | | ?????????????????????????????????????????????????? | | ?????????????????????????????????????????????????? | | ??????######????????????#########????????????????? | | ?###### #????????????# ## ^ ##???????????????? | | ## ## ########?????# ! ##??????????????? | | # # ##????##=% #??????????????? | | #?####&!### #??????????????? | | ####### ### ##@&!#? #??????????????? | | # ##?????## # [%%&##? ^ ##??????????????? | | ## #???????## ### # #!&R#&[#? ##???????????????? | | ? ????????####?############??##????????????????? | | # #?????????????????????????????????????????????? | | # ?????????????????????????????????????????????? | | ### ?????????????????????????????????????????????? | | ??? ?????????????????????????????????????????????? | | ??? ????????????????????????????????????????????? | | ???# ????????????????????????????????????????????? | | ???? ????????????????????????????????????????????? | | ???? ????????????????????????????????????????????? | | ???? #???????????????????????????????????????????? | | ?????#???????????????????????????????????????????? | | ?????????????????????????????????????????????????? | | ?????????????????????????????????????????????????? | | ?????????????????????????????????????????????????? | | ?????????????????????????????????????????????????? | | ?????????????????????????????????????????????????? | | ?????????????????????????????????????????????????? | | ?????????????????????????????????????????????????? | | ?????????????????????????????????????????????????? | | ?????????????????????????????????????????????????? | | ?????????????????????????????????????????????????? | | ?????????????????????????????????????????????????? | +----------------------------------------------------+ Best States ------------- Heat Dissipation 35 Energy Generation 10 Energy Capacity 250 Matter Stores 116 Matter Capacity 300 Sight Range 16 Terrain Scan Range 16 Terrain Scan Density 10 Evasion (%) 55 Item Schematics ----------------- None Robot Schematics ------------------ None Fabricated ------------ Nothing Repaired ---------- Imp. Terrain Scanner | 22% | -10/Materials Studied --------- None Alien Tech Used ----------------- None Achievements -------------- You Again Challenges ------------ None Game ------ Seed ImprovedShieldAutohacker Manual? 0 Play Time 00:09:45 Cumulative 8.1 hours Start 2026.02.18 @ 16:23:30 End 2026.02.18 @ 16:31:01 Sessions 1 Manual Loads 0 Difficulty Rogue Special Mode None Game No. 11 Rogue 11 Adventurer 0 Explorer 0 Win Type - Total 0 Types 0/0/0/0/0/0/0/0/0/0 Lore% 7 Gallery% 16 Achievement% 13 Wizard Run 0 Options --------- Layout 1 ASCII 0 Keyboard 0 Movement Mouse Keybinds 0 Fullscreen 1 Font 24/Swanston Map View 50x35 Zoom Use 0% Tactical HUD 1 Map Filters NONE Filters NONE Steam 1 RUN: 4d92493b-1540-4e61-b7ce-fa652e14c69b